[Event "45th FIDE Olympiad 2024"]
[Site "Budapest"]
[Date "2024.09.16"]
[Round "6.69"]
[White "Keymer, Vincent"]
[Black "Gascon Del Nogal, Jose Rafael"]
[Result "1-0"]
[ECO "D31"]
[WhiteElo "2730"]
[BlackElo "2454"]
[Annotator "TA"]
[PlyCount "55"]
[EventDate "2024.09.05"]
[EventType "team-tourn"]
[EventCountry "HUN"]
[SourceTitle "playchess.com"]
[Source "ChessBase"]
[SourceQuality "1"]
[WhiteTeam "Germany"]
[BlackTeam "Venezuela"]
[WhiteTeamCountry "GER"]
[BlackTeamCountry "VEN"]
[TimeControl "40/5400+30:1800+30"]

{[%evp 9,55,22,29,12,26,11,15,0,45,36,52,16,25,14,26,41,16,25,83,93,88,81,83,76,79,59,54,62,121,106,100,106,139,87,73,75,257,260,1092,1087,1243,1229,1531,1644,1607,1599,1567,1500]} 1. c4 e6 2. Nc3 d5 3. d4 h6 4. cxd5 exd5 5. Bf4 c6 6. e3 Bf5 7. Nge2 Nd7 8. h4 {The position is equal.} Qb6 9. Qd2 Ngf6 10. f3 h5 11. Ng3 Bg6 12. O-O-O Bb4 13. Bd3 O-O {[#]} (13... Bxd3 $11 14. Qxd3 O-O) 14. Bxg6 $1 $16 fxg6 15. Nge2 Rfe8 16. Qd3 Nf8 17. a3 Be7 18. Bg5 (18. Bg3 {simplifies} a5 19. Nf4 Qa6 20. Qxa6 Rxa6 21. Kd2) 18... Qb3 ({Black should play} 18... a5 $14) 19. Nf4 {[%cal Oc3d5]} Rac8 20. Rd2 (20. Nxg6 $6 Nxg6 21. Qxg6 Bxa3 $11) 20... Kf7 21. e4 {White is more active.} (21. Bxf6 $142 gxf6 22. g4 hxg4 (22... Bd6 $2 23. Ne4 $18) 23. fxg4) 21... c5 22. Ncxd5 ({And not} 22. Nfxd5 cxd4 23. Qxd4 Ne6 $17) 22... Qa2 {This move loses the game for Black.} (22... cxd4+ $16 23. Kb1 Qxd3+ 24. Rxd3 Nxd5 25. exd5 (25. Nxd5 Bxg5 26. hxg5 Ne6 $11) 25... Bxg5 26. hxg5 Rc4) 23. Nxe7 $18 cxd4+ $2 (23... Rxe7 24. d5 b5) 24. Nxc8 {[#] Nd6+ would now be deadly. White is clearly winning.} Rxc8+ 25. Rc2 Qa1+ 26. Kd2 {White threatens Qb3+ and mate.} Rxc2+ 27. Kxc2 Qxh1 28. e5 {Weighted Error Value: White=0.09 (flawless) /Black=0.30.  Loses game:     	---       	Black=1      Mistake:       	White=1     	Black=3      Inaccurate:     	White=1     	Black=2      OK:         	White=5     	Black=9      Best:        	White=4     	---        Strong:       	White=1     	---} 1-0

[Event "45th FIDE Olympiad 2024"]
[Site "Budapest"]
[Date "2024.09.16"]
[Round "6.69"]
[White "Stetsenko, Ilya"]
[Black "Bhakta, Bahadur Monger"]
[Result "1-0"]
[WhiteElo "1903"]
[BlackElo "1911"]
[PlyCount "87"]
[EventDate "2024.09.05"]
[EventType "team-tourn"]
[EventCountry "HUN"]
[WhiteTeam "Aruba"]
[BlackTeam "Bhutan"]
[WhiteTeamCountry "ARN"]
[BlackTeamCountry "BTN"]
[TimeControl "40/5400+30:1800+30"]

1. d4 Nf6 2. c4 e6 3. Nf3 Bb4+ 4. Bd2 Bxd2+ 5. Qxd2 O-O 6. Nc3 d5 7. e3 b6 8. cxd5 Nxd5 9. e4 Ne7 10. Bc4 Ba6 11. Bxa6 Nxa6 12. O-O c5 13. Rfd1 cxd4 14. Qxd4 Qxd4 15. Rxd4 Rfd8 16. Rad1 Nc6 17. Rd6 Rxd6 18. Rxd6 Rc8 19. h3 h6 20. Nd4 Nxd4 21. Rxd4 Nb8 22. Nb5 a6 23. Na7 Re8 24. Rd6 b5 25. e5 Kf8 26. b4 g5 27. g3 Ke7 28. Nc6+ Nxc6 29. Rxc6 Ra8 30. Rc7+ Ke8 31. Rb7 Kf8 32. Rb6 a5 33. a3 axb4 34. axb4 Ra1+ 35. Kg2 Re1 36. Rxb5 Re4 37. Kf3 Rd4 38. Rb8+ Kg7 39. b5 h5 40. Ke3 Rb4 41. b6 f6 42. exf6+ Kxf6 43. b7 h4 44. Rf8+ 1-0

[Event "45th FIDE Olympiad 2024"]
[Site "Budapest"]
[Date "2024.09.16"]
[Round "6.70"]
[White "Ynojosa Aponte, Felix Jose"]
[Black "Kollars, Dmitrij"]
[Result "0-1"]
[ECO "A21"]
[WhiteElo "2398"]
[BlackElo "2659"]
[Annotator "TA"]
[PlyCount "60"]
[EventDate "2024.09.05"]
[EventType "team-tourn"]
[EventCountry "HUN"]
[SourceTitle "playchess.com"]
[Source "ChessBase"]
[SourceQuality "1"]
[WhiteTeam "Venezuela"]
[BlackTeam "Germany"]
[WhiteTeamCountry "VEN"]
[BlackTeamCountry "GER"]
[TimeControl "40/5400+30:1800+30"]

{[%evp 9,60,-37,-42,-8,-18,-37,-24,-22,-9,-34,0,-52,-47,-58,-27,-56,-49,-87,-92,-98,-65,-191,-204,-213,0,0,20,22,21,-84,-61,-60,-76,-69,-86,-103,-95,-83,-98,-93,-104,-124,0,0,-172,-904,-868,-1310,-1220,-29982,-29983,-29987,-29988]} 1. c4 e5 2. Nc3 Bb4 3. Qc2 Nf6 4. e3 O-O 5. a3 Bxc3 6. Qxc3 Re8 7. Nf3 d5 8. cxd5 {Black has an edge.} Nxd5 9. Qc2 Nc6 10. Bd3 (10. d3 $1 $11) 10... g6 $1 $15 {[%cal Oc6b4]} 11. Bb5 {[%cal Od2d3]} Bd7 {[%cal Oc6b4]} 12. Bc4 Nb6 {Hoping for ...Nxc4.} 13. Bd3 Qe7 14. Be4 Nd8 {aiming for ...f5.} 15. b3 (15. Qb1 $15) 15... f5 $19 16. Bd3 {[%cal Oc1b2]} Nf7 $2 ({Better is} 16... e4 $19 17. Bb2 Ne6 (17... exd3 18. Qc3 $11)) 17. Bb2 $11 {[%cal Oh2h4]} c5 (17... e4 $5 18. Qc3 $8 Qf8 $15 (18... exd3 19. Qg7#)) 18. h4 h5 {[#]} 19. Ng5 Nxg5 $17 20. hxg5 Qxg5 21. O-O-O (21. Qxc5 $2 Qxg2 (21... Rac8 $2 22. Qb4 $19) 22. Bc4+ (22. O-O-O $2 Rac8 $19) 22... Nxc4 23. Qxc4+ Re6 $19) 21... Rac8 {[%cal Og5f6]} 22. f4 Qe7 (22... exf4 $6 23. Qc3 Qh6 24. exf4 $11) 23. g4 {[#]} (23. fxe5 $2 c4 24. Bxc4+ (24. bxc4 $2 Ba4 $19) 24... Nxc4 25. bxc4 Be6 $19) 23... c4 $1 (23... fxg4 $2 24. Bxg6 c4 25. b4 $18 (25. Bxe5 $2 cxb3 26. Rxh5 Qxa3+ 27. Bb2 Rxc2+ $19)) (23... e4 $2 24. gxh5 g5 25. Bc4+ Nxc4 26. Qxc4+ (26. bxc4 g4 $11) 26... Be6 27. Qc3 $18) 24. Bxc4+ Nxc4 25. bxc4 {[#]} b5 (25... fxg4 $2 26. Qxg6+ (26. Bxe5 $2 Bf5 $19) 26... Qg7 27. Qxh5 $18) (25... hxg4 26. d3 Qg7 27. d4 $16 (27. Bxe5 Rxe5 28. fxe5 Qxe5 $11) (27. fxe5 Be6 $11)) (25... Qe6 $1 $17 26. gxh5 (26. Bxe5 $2 Rxc4 27. Bc3 fxg4 $19) 26... Rxc4 (26... Ba4 27. Qxa4 Rxc4+ 28. Qxc4 $17)) 26. gxh5 $11 (26. Bxe5 $2 Rxc4 (26... bxc4 $2 27. gxh5 Qxa3+ 28. Bb2 $18) 27. Bc3 Qxa3+ (27... hxg4 $2 28. Rh8+ Kf7 29. Rh7+ Kf8 30. Rxe7 $18) 28. Qb2 Qc5 $19 (28... Qxb2+ $2 29. Kxb2 fxg4 30. d3 $19)) 26... Rxc4 $2 (26... bxc4 $2 27. hxg6 (27. Bxe5 Qxa3+ 28. Bb2 Qb3 $18) 27... Qc5 28. Kb1 $18 (28. fxe5 Be6 $18)) (26... g5 $1 $11 27. Rdg1 (27. fxe5 $2 Rxc4 28. Bc3 Qxa3+ 29. Qb2 Qa4 $19) 27... g4) 27. Qxc4+ $2 (27. Bc3 Qxa3+ (27... exf4 $2 {perishes.} 28. Qb3 $18) 28. Qb2) 27... bxc4 $19 28. Rdg1 {[#]} c3 $1 29. Bxc3 (29. dxc3 exf4) 29... Ba4 30. Rxg6+ Kh7 {Weighted Error Value: White=0.90/Black=0.20 (precise) .  Missed win:     	---       	Black=1      Mistake:       	White=4     	Black=2      Inaccurate:     	White=3     	Black=3      OK:         	White=7     	Black=3      Best:        	White=1     	Black=2      Strong:       	---       	Black=2} 0-1

[Event "45th FIDE Olympiad 2024"]
[Site "Budapest"]
[Date "2024.09.16"]
[Round "6.70"]
[White "Mahendra, Gurung"]
[Black "Croes, Octavio"]
[Result "0-1"]
[WhiteElo "1725"]
[BlackElo "1850"]
[PlyCount "184"]
[EventDate "2024.09.05"]
[EventType "team-tourn"]
[EventCountry "HUN"]
[WhiteTeam "Bhutan"]
[BlackTeam "Aruba"]
[WhiteTeamCountry "BTN"]
[BlackTeamCountry "ARN"]
[TimeControl "40/5400+30:1800+30"]

1. e4 c6 2. Nf3 d5 3. exd5 cxd5 4. d4 Nc6 5. c3 Bg4 6. h3 Bh5 7. Bf4 e6 8. Nbd2 Bd6 9. Bxd6 Qxd6 10. Bb5 Nf6 11. Qa4 O-O 12. O-O a6 13. Bxc6 bxc6 14. Ne5 c5 15. Rfe1 cxd4 16. Qxd4 Rab8 17. b3 Rfc8 18. Re3 a5 19. Rg3 Qc5 20. Qa4 Rc7 21. Re1 Bg6 22. Ree3 Rd8 23. Qh4 d4 24. Ne4 Qxe5 25. Rg5 Bf5 26. f4 Nxe4 27. fxe5 dxe3 28. Rxf5 Rd1+ 29. Rf1 e2 30. Re1 Rcd7 31. Kh2 g5 32. Qxe4 Rxe1 33. Kg3 h6 34. Qe3 Rdd1 35. c4 Ra1 36. Qd2 Kg7 37. c5 Rec1 38. Qxe2 Rxc5 39. Kg4 Rd5 40. g3 Rc1 41. h4 Rcc5 42. hxg5 hxg5 43. Qb2 Rxe5 44. a3 Kg6 45. b4 axb4 46. axb4 Rc4+ 47. Kh3 g4+ 48. Kg2 Rb5 49. Qh8 Rbxb4 50. Qg8+ Kf6 51. Qd8+ Ke5 52. Qg5+ f5 53. Qe3+ Kd5 54. Qd2+ Kc5 55. Kf2 Kb5 56. Qd7+ Rc6 57. Ke2 Rbc4 58. Qb7+ Rb6 59. Qd7+ Kb4 60. Kd2 Rbc6 61. Qb7+ Ka3 62. Qa7+ Ra4 63. Qd7 Rb6 64. Qe7+ Ka2 65. Qc5 Rb2+ 66. Kc1 Rab4 67. Qa7+ Kb3 68. Qe3+ Ka4 69. Qxe6 Rb1+ 70. Kc2 R4b2+ 71. Kc3 Rb3+ 72. Kc4 Rc1+ 73. Kd4 Rb4+ 74. Kd3 Rb3+ 75. Kd2 Rc5 76. Qa6+ Kb4 77. Qb6+ Kc4 78. Qe6+ Rd5+ 79. Kc2 Rxg3 80. Qe2+ Rgd3 81. Kc1 g3 82. Qa2+ Kd4 83. Qa7+ Ke4 84. Qe7+ Kf3 85. Qg5 Rd1+ 86. Kc2 f4 87. Qg7 g2 88. Qc3+ R5d3 89. Qc6+ Kf2 90. Qc5+ Rd4 91. Qg5 g1=Q 92. Qh4+ Qg3 {0-} 0-1

[Event "45th FIDE Olympiad 2024"]
[Site "Budapest"]
[Date "2024.09.16"]
[Round "6.71"]
[White "Bluebaum, Matthias"]
[Black "Escalona Landi, Samid Eduardo"]
[Result "1-0"]
[ECO "E93"]
[WhiteElo "2640"]
[BlackElo "2305"]
[Annotator "TA"]
[PlyCount "107"]
[EventDate "2024.09.05"]
[EventType "team-tourn"]
[EventCountry "HUN"]
[SourceTitle "playchess.com"]
[Source "ChessBase"]
[SourceQuality "1"]
[WhiteTeam "Germany"]
[BlackTeam "Venezuela"]
[WhiteTeamCountry "GER"]
[BlackTeamCountry "VEN"]
[TimeControl "40/5400+30:1800+30"]

{[%evp 32,106,70,59,88,59,72,80,84,45,74,91,122,128,126,94,100,85,77,88,136,123,122,116,248,275,279,256,228,150,161,160,408,403,419,423,419,403,428,416,408,397,491,472,477,466,507,539,546,528,551,551,556,529,518,500,709,709,728,754,863,906,903,866,850,829,1230,1257,1173,1411,1379,1408,29973,6070,5306,5306,5206]} 1. c4 Nf6 2. Nc3 g6 3. e4 d6 4. d4 Bg7 5. Be2 O-O 6. Nf3 e5 7. d5 Nbd7 8. Be3 Ng4 9. Bg5 f6 10. Bc1 {E93: King's Indian: Classical: Petrosian System with 7...Nbd7.} f5 11. Ng5 Nc5 12. b4 Na6 13. Rb1 Nf6 14. O-O $146 ({Predecessor:} 14. Ne6 Bxe6 15. dxe6 Qe7 16. exf5 gxf5 17. Nd5 Nxd5 18. cxd5 Rac8 19. O-O Nb8 20. b5 {1-0 Hejazipour,M (2351)-Hashemi,S (1903) Asia zt 3.1 (Women) 2017 (7)}) 14... Qe7 15. c5 dxc5 16. d6 Qxd6 17. b5 $1 Nb8 18. Bc4+ Kh8 19. Nf7+ Rxf7 20. Bxf7 Qe7 21. Bb3 f4 22. Nd5 Qd6 23. Nxf6 Bxf6 24. Qc2 Nd7 25. Rd1 Qf8 (25... Qe7 $142) 26. Bb2 $16 a6 27. a4 a5 (27... axb5 $16 28. axb5 Kg7) 28. Rd3 $18 Kg7 29. Rbd1 Qe7 30. Qd2 Nf8 31. Bd5 Ne6 $2 {[#]} (31... Ra7 $16 32. Bc3 h5) 32. Bxb7 $1 $18 Bxb7 33. Rd7 Nd4 34. Rxe7+ Bxe7 35. Qd3 Bd6 36. f3 Ne6 37. Qc4 Kf6 38. Bc3 h5 39. h4 Nd4 40. Kh2 Ke7 41. Bb2 Rf8 42. Ba3 Ne6 43. Rd5 Bxd5 44. exd5 Nd4 45. Bxc5 Rf5 46. b6 cxb6 47. Bxb6 Rf8 48. Bxa5 Nf5 49. Bb4 Bxb4 50. Qxb4+ Nd6 51. Qc3 Nf7 52. Qc7+ (52. Qc5+ $142 Ke8 53. Qc6+ Ke7 54. Qe6+ (54. Qxg6 Rb8 $18) 54... Kd8 55. d6 (55. Qxg6 e4 $18) 55... Nxd6 56. Qxd6+ Ke8 57. Qxe5+ (57. Qxg6+ Rf7 $18) 57... Kd7 58. Qg7+ Ke8 59. a5 (59. Qxg6+ Ke7 60. a5 Rf6 61. Qg7+ Rf7 62. Qe5+ Kd8 63. a6 Rc7)) 52... Kf6 $18 53. a5 Rd8 54. a6 1-0

[Event "45th FIDE Olympiad 2024"]
[Site "Budapest"]
[Date "2024.09.16"]
[Round "6.71"]
[White "Pesqueira, Jose"]
[Black "Suk, Raj Monger"]
[Result "1-0"]
[WhiteElo "1880"]
[BlackElo "1821"]
[PlyCount "71"]
[EventDate "2024.09.05"]
[EventType "team-tourn"]
[EventCountry "HUN"]
[WhiteTeam "Aruba"]
[BlackTeam "Bhutan"]
[WhiteTeamCountry "ARN"]
[BlackTeamCountry "BTN"]
[TimeControl "40/5400+30:1800+30"]

1. Nf3 d5 2. d4 Bf5 3. e3 e6 4. c4 Bb4+ 5. Nc3 Nf6 6. a3 Bxc3+ 7. bxc3 Ne4 8. Qb3 b6 9. cxd5 exd5 10. c4 Be6 11. Bb2 O-O 12. Rc1 c6 13. Be2 Qe7 14. O-O g5 15. a4 g4 16. Ne5 Nd2 17. Qa3 Qxa3 18. Bxa3 Nxf1 19. Bxf8 Nxe3 20. fxe3 Kxf8 21. cxd5 Bxd5 22. Bxg4 f6 23. Nd3 a5 24. Bf5 Ra7 25. Rb1 b5 26. axb5 a4 27. b6 Ra5 28. Nc5 a3 29. Ra1 a2 30. Bd3 Ke7 31. e4 Bf7 32. Kf2 Nd7 33. b7 Nxc5 34. dxc5 Ra3 35. b8=Q Rxd3 36. Rxa2 1-0

[Event "45th FIDE Olympiad 2024"]
[Site "Budapest"]
[Date "2024.09.16"]
[Round "6.72"]
[White "Castro Torres, Jose Luis"]
[Black "Donchenko, Alexander"]
[Result "0-1"]
[ECO "B19"]
[WhiteElo "2299"]
[BlackElo "2638"]
[Annotator "TA"]
[PlyCount "108"]
[EventDate "2024.09.05"]
[EventType "team-tourn"]
[EventCountry "HUN"]
[SourceTitle "playchess.com"]
[Source "ChessBase"]
[SourceQuality "1"]
[WhiteTeam "Venezuela"]
[BlackTeam "Germany"]
[WhiteTeamCountry "VEN"]
[BlackTeamCountry "GER"]
[TimeControl "40/5400+30:1800+30"]

{[%evp 20,108,0,0,0,0,0,0,0,2,0,-12,-21,-25,0,0,-9,0,0,0,0,0,0,-46,-2,-18,-24,-145,-5,-6,-2,-97,44,-122,-133,-176,-176,-161,-124,-124,-127,-662,-650,-658,-600,-683,-689,-714,-672,-662,-633,-679,-594,-619,-466,-740,-722,-1328,-947,-933,-911,-821,-591,-604,-670,-980,-964,-955,-970,-2803,-2817,-6552,-6544,-29969,-29971,-29966,-29961,-29968,-29969,-29979,-29979,-29978,-29979,-29979,-29980,-29980,-29980,-29983,-29984,-29984,-29985]} 1. e4 c6 2. d4 d5 3. Nc3 dxe4 4. Nxe4 Bf5 5. Ng3 Bg6 6. Nf3 Nd7 7. h4 h6 8. h5 Bh7 9. Bd3 Bxd3 10. Qxd3 e6 11. Bf4 Qa5+ 12. Bd2 Bb4 13. c3 {[%cal Bc2c3,Bc3c4][%mdl 32]} Be7 {The position is equal.} 14. c4 Qc7 15. Ne4 Ngf6 16. O-O-O b5 17. Nxf6+ Nxf6 18. Kb1 bxc4 19. Qxc4 O-O 20. Rc1 Rfc8 21. g4 Ne4 (21... Nxg4 $2 22. Rcg1 $18) (21... c5 {simplifies} 22. g5 Ne4 23. dxc5 Nxd2+ 24. Nxd2 Bxg5 25. Rc2 Rab8) 22. Be3 Qb7 23. g5 hxg5 {Black is more active.} (23... c5 $17 {Hoping for ...cxd4.} 24. dxc5 Bxc5) 24. h6 $1 $11 Bf6 {...gxh6 is the strong threat.} 25. Ne5 (25. hxg7 $11 {remains equal.} c5 26. Qb3 Qxb3 27. axb3) 25... g6 {[#]} (25... c5 $17 {Strongly threatening ...gxh6.} 26. Qxe6 gxh6 27. Nxf7 Qxf7 (27... Nc3+ 28. Rxc3 Qxf7 29. Qxf7+ Kxf7 30. Rxc5 $16) 28. Qxe4 cxd4) 26. Nxg6 $2 c5 $40 {[%mdl 128] Black has strong attack. The board is on fire.} 27. h7+ Kg7 28. h8=Q+ Rxh8 29. Nxh8 cxd4 30. Qc7 $2 {[%mdl 8192] This move loses the game for White.} (30. Nxf7 $2 dxe3 31. Qc2 Rc8 $19 (31... Kxf7 $2 32. fxe3 Kg6 33. Rh2 $19) (31... exf2 32. Nd6 $18)) (30. Bxg5 $17 Nxg5 31. Qc7) 30... Nc3+ $19 31. Rxc3 Qxh1+ 32. Rc1 Qe4+ 33. Ka1 Rxh8 ({Weaker is} 33... Kxh8 34. Qxf7 Bg7 (34... Qf3 35. Bxd4 Bxd4 36. Qxf3 Rb8 37. Qh5+ Kg8 38. Qxg5+ Kf8 39. Qf4+ Ke8 40. Qxb8+) 35. f3 $16 (35. Bxg5 Rf8 $14)) 34. Bd2 Rh1 35. a4 Rxc1+ 36. Qxc1 {[%mdl 4096] Endgame. KQB-KQB} d3 37. a5 (37. Bxg5 $142 Qxa4+ 38. Kb1 Qc2+ 39. Qxc2 dxc2+ 40. Kxc2 Bxg5 41. Kd3) 37... Kg6 38. Qc8 Qa4+ 39. Kb1 Qd1+ 40. Qc1 Qb3 {And now ...a6 would win.} 41. Be3 a6 42. Qd2 g4 43. Bf4 Bd4 {...e5 would now be deadly.} 44. Bg3 e5 45. Bh4 f6 46. Kc1 e4 {Black mates.} 47. Kb1 Kh5 48. Bg3 f5 49. Qc1 {[#]} Qc2+ $1 50. Qxc2 dxc2+ 51. Kxc2 Kg5 52. Bc7 Bxf2 53. Kd2 g3 54. Ke2 f4 {Weighted Error Value: White=0.56/Black=0.43.  Loses game:     	White=1     	---        Mistake:       	White=5     	Black=2      Inaccurate:     	White=3     	Black=1      OK:         	White=5     	Black=9      Best:        	White=1     	Black=3      Strong:       	White=1     	---} 0-1

[Event "45th FIDE Olympiad 2024"]
[Site "Budapest"]
[Date "2024.09.16"]
[Round "6.72"]
[White "Lhundrup, M Dorji"]
[Black "Antonio, Kyell-Jean"]
[Result "0-1"]
[WhiteElo "1715"]
[BlackElo "1763"]
[PlyCount "61"]
[EventDate "2024.09.05"]
[EventType "team-tourn"]
[EventCountry "HUN"]
[WhiteTeam "Bhutan"]
[BlackTeam "Aruba"]
[WhiteTeamCountry "BTN"]
[BlackTeamCountry "ARN"]
[TimeControl "40/5400+30:1800+30"]

1. e4 e5 2. Nf3 Nc6 3. Bc4 Bc5 4. c3 Nf6 5. d3 d6 6. h3 O-O 7. O-O a6 8. Bb3 h6 9. Re1 Ba7 10. a4 Ne7 11. Nh4 Be6 12. Bc2 c6 13. Qf3 Ng6 14. Nf5 Bxf5 15. exf5 Nh4 16. Qg3 Nxf5 17. Qf3 Nh4 18. Qg3 Ng6 19. d4 exd4 20. Bxg6 fxg6 21. Qxg6 Nh7 22. Bxh6 Qf6 23. Re6 Qxf2+ 24. Kh1 Qf1+ 25. Kh2 Qf7 26. Nd2 Kh8 27. Qxf7 Rxf7 28. Bxg7+ Kxg7 29. Rxd6 Bb8 30. Ne4 Rd7 31. cxd4 {0-} 0-1

[Event "45th FIDE Olympiad 2024"]
[Site "Budapest"]
[Date "2024.09.16"]
[Round "6.73"]
[White "Cheparinov, Ivan"]
[Black "Amartuvshin, Ganzorig"]
[Result "1-0"]
[ECO "C54"]
[WhiteElo "2628"]
[BlackElo "2402"]
[Annotator "TA"]
[PlyCount "49"]
[EventDate "2024.09.05"]
[EventType "team-tourn"]
[EventCountry "HUN"]
[SourceTitle "playchess.com"]
[Source "ChessBase"]
[SourceQuality "1"]
[WhiteTeam "Bulgaria"]
[BlackTeam "Mongolia"]
[WhiteTeamCountry "BUL"]
[BlackTeamCountry "MGL"]
[TimeControl "40/5400+30:1800+30"]

{[%evp 11,49,12,22,18,23,14,27,6,16,12,20,16,16,17,25,30,51,25,31,28,65,33,41,33,73,35,50,45,58,38,63,46,120,108,127,133,462,422,1118,1095]} 1. e4 e5 2. Bc4 Nc6 3. Nf3 Bc5 4. d3 Nf6 5. c3 a6 6. O-O Ba7 7. a4 O-O 8. Re1 d6 {[%cal Ob7b5]} 9. h3 {White has an edge.} h6 10. Nbd2 {[%cal Bb1d2,Bd2f1,Bf1g3][%mdl 32]} Re8 11. b4 Be6 12. Bxe6 Rxe6 13. Qc2 b5 14. Nf1 d5 15. Ng3 Qd7 16. axb5 axb5 {[%cal Oa7f2] [#] ...Bxf2+! is the strong threat.} 17. Be3 dxe4 18. dxe4 {Ra3 would now be deadly.} Ree8 19. Qe2 Bxe3 20. Qxe3 Rxa1 21. Rxa1 Nb8 (21... Qc8 $1 $14) 22. Nh4 {[%cal Bf3h4,Bh4f5,Bf5g7,Bg7e6][%mdl 32] Threatens to win with Nhf5.} Kh7 23. Nhf5 {[%cal Of5g7] Strongly threatening Nxg7!} Re6 $2 {[%mdl 8192] [#]} (23... Rg8 $16 24. Ra7 Qd1+ 25. Kh2 Qd7) 24. Nxg7 $1 $18 Ng4 (24... Kxg7 25. Nf5+ Kg8 26. Qg3+ (26. Qxh6 Ne8 $18) (26. Qxh6 Ne8 $18)) (24... Rb6 $142 25. N3f5 Ng8) 25. Nxe6 {Weighted Error Value: White=0.09 (flawless) /Black=0.49.  Loses game:     	---       	Black=1      Mistake:       	---       	Black=2      Inaccurate:     	White=3     	Black=2      OK:         	White=5     	Black=4      Best:        	White=2     	Black=1      Strong:       	White=1     	---} 1-0

[Event "45th FIDE Olympiad 2024"]
[Site "Budapest"]
[Date "2024.09.16"]
[Round "6.73"]
[White "Misambo, .J. Kilasa"]
[Black "D`amico, Nicola"]
[Result "1-0"]
[WhiteElo "1959"]
[BlackElo "1801"]
[PlyCount "69"]
[EventDate "2024.09.05"]
[EventType "team-tourn"]
[EventCountry "HUN"]
[WhiteTeam "Tanzania"]
[BlackTeam "San Marino"]
[WhiteTeamCountry "TAN"]
[BlackTeamCountry "SMR"]
[TimeControl "40/5400+30:1800+30"]

1. c4 e5 2. Nc3 Nf6 3. Nf3 Nc6 4. d3 Bb4 5. Bg5 h6 6. Bh4 d6 7. a3 Bxc3+ 8. bxc3 Ne7 9. Bxf6 gxf6 10. g3 Be6 11. Bg2 Qd7 12. Rb1 Rb8 13. Nd2 b6 14. Ne4 Ng8 15. O-O Ke7 16. f4 Bh3 17. fxe5 fxe5 18. Qb3 Bxg2 19. Kxg2 f5 20. c5 d5 21. Nd2 Nf6 22. Qb4 a5 23. Qh4 bxc5 24. Rxb8 Rxb8 25. Qxh6 Rg8 26. Kg1 d4 27. c4 a4 28. Nf3 Qd6 29. Nh4 Kd8 30. Rxf5 Ng4 31. Qxd6+ cxd6 32. Rf7 Ne3 33. Ra7 Rf8 34. Ra8+ Ke7 35. Ng6+ 1-0

[Event "45th FIDE Olympiad 2024"]
[Site "Budapest"]
[Date "2024.09.16"]
[Round "6.74"]
[White "Chinguun, Sumiya"]
[Black "Naiditsch, Arkadij"]
[Result "1/2-1/2"]
[ECO "B67"]
[WhiteElo "2389"]
[BlackElo "2643"]
[Annotator "RC"]
[PlyCount "63"]
[EventDate "2024.09.05"]
[EventType "team-tourn"]
[EventCountry "HUN"]
[SourceTitle "playchess.com"]
[Source "ChessBase"]
[SourceQuality "1"]
[WhiteTeam "Mongolia"]
[BlackTeam "Bulgaria"]
[WhiteTeamCountry "MGL"]
[BlackTeamCountry "BUL"]
[TimeControl "40/5400+30:1800+30"]

1. e4 c5 2. Nf3 d6 3. d4 cxd4 4. Nxd4 Nf6 5. Nc3 Bd7 6. Bg5 e6 7. Qd2 a6 8. O-O-O h6 9. Bxf6 Qxf6 10. f4 Nc6 11. Nf3 Qd8 12. g4 Qa5 13. Kb1 O-O-O 14. Bg2 Be7 15. Qe3 g5 16. Rhe1 gxf4 17. Qxf4 Ne5 18. Nxe5 Qxe5 19. Qf2 h5 20. gxh5 Rxh5 21. Qxf7 Bf6 22. Rf1 Rh6 23. Rf3 Be8 24. Qf8 Bg7 25. Qe7 Rh8 26. Bh3 Bh5 27. Rd5 Qxh2 28. Bxe6+ Kb8 29. Rf1 Qg2 30. Rdf5 Rhe8 31. Qg5 Qxg5 32. Rxg5 1/2-1/2

[Event "45th FIDE Olympiad 2024"]
[Site "Budapest"]
[Date "2024.09.16"]
[Round "6.74"]
[White "Righi, Ezio"]
[Black "Veer, Gandhi"]
[Result "1-0"]
[WhiteElo "1909"]
[BlackElo "1792"]
[PlyCount "109"]
[EventDate "2024.09.05"]
[EventType "team-tourn"]
[EventCountry "HUN"]
[WhiteTeam "San Marino"]
[BlackTeam "Tanzania"]
[WhiteTeamCountry "SMR"]
[BlackTeamCountry "TAN"]
[TimeControl "40/5400+30:1800+30"]

1. e4 c6 2. d4 d5 3. Nc3 dxe4 4. Nxe4 Nf6 5. Nxf6+ exf6 6. c3 Bd6 7. Bd3 O-O 8. Qc2 Re8+ 9. Ne2 h5 10. O-O h4 11. h3 Nd7 12. Be3 Nf8 13. c4 Be6 14. Nf4 Qc7 15. Nxe6 Nxe6 16. d5 cxd5 17. cxd5 Qxc2 18. Bxc2 Nf4 19. Rfd1 Rac8 20. Ba4 Re4 21. Bb3 a6 22. Kf1 Ng6 23. Rac1 Ree8 24. Rc2 Rxc2 25. Bxc2 Ne7 26. Bb3 Nc8 27. a4 g6 28. Ba2 Ne7 29. Rc1 Rc8 30. Rxc8+ Nxc8 31. Ke2 Kf8 32. Kd3 Be5 33. b4 Ke7 34. Kc4 Kd7 35. f4 Bc7 36. Bb3 Nd6+ 37. Kd3 Ne8 38. Bc4 f5 39. b5 a5 40. b6 Bd6 41. Bb5+ Ke7 42. Bxe8 Kxe8 43. Kc4 Bb4 44. Bf2 Bd2 45. Bxh4 Bxf4 46. Be1 Be3 47. Bxa5 g5 48. Kd3 Bf2 49. Bd2 g4 50. a5 Kd7 51. hxg4 fxg4 52. Ke4 g3 53. Bf4 Kc8 54. Kf5 Be1 55. Kf6 1-0